Cogmind - Beta 9.4 @@@ ROGUE MODE // 2020.01.20 @ 19:02:21 Player: derk Result: Destroyed by as-97805 with Assembled Heavy Rifle Performance ------------- Evolutions (0) 0 Regions Visited (2) 400 Robots Destroyed (18) 90 Value Destroyed (228) 228 Prototype IDs (2) 40 Alien Tech Used (0) 0 Bonus (0) 0 TOTAL SCORE: 758 Bonus ------- None Cogmind --------- Core Integrity 0/250 Matter 300/300 Energy 100/100 System Corruption 8% Temperature Cool (0) Movement Core (550) Ox10 Location -10/Mines Parts ------- > --- POWER (1) -------- (None) > --- PROPULSION (2) --- (None) > --- UTILITY (2) ------ Large Storage Unit Large Storage Unit > --- WEAPON (2) ------- Mining Laser > --- INVENTORY (16) --- Wheel Wheel Wheel Compact Wheel Improved Heat Sink High-capacity Battery (400) High-capacity Matter Pod (166) Signal Interpreter Improved Targeting Computer Armor Integrity Analyzer Utility Shielding Peak State ------------ > --- POWER ------------ Ion Engine > --- PROPULSION ------- Wheel Compact Wheel > --- UTILITY ---------- Small Storage Unit Large Storage Unit > --- WEAPON ----------- Particle Gun Light Assault Rifle > --- INVENTORY -------- Light Ion Engine Light Treads Light Treads Wheel Wheel Wheel Improved Heat Sink High-capacity Matter Pod Signal Interpreter Signal Interpreter Utility Shielding Grenade Launcher [Rating: 9] Favorites ----------- Power Ion Engine Engine Ion Engine Propulsion Wheel Wheel Wheel Utility Large Storage Unit Storage Large Storage Unit Processor Signal Interpreter Protection Utility Shielding Weapon Light Assault Rifle Energy Gun Particle Gun Ballistic Gun Light Assault Rifle Launcher Grenade Launcher Special Weapon Mining Laser Build | -11 -10 -10 ------- Run | Scr Mat Min Slots Evolved . | . . . Power . | . . . Propulsion . | . . . Utility . | . . . Weapon . | . . . Parts Attached 23 | 6 12 5 Power 2 | 1 . 1 Engine 2 | 1 . 1 Core . | . . . Reactor . | . . . Propulsion 6 | 2 3 1 Treads . | . . . Leg . | . . . Wheel 6 | 2 3 1 Hover . | . . . Flight . | . . . Utility 6 | 1 5 . Device . | . . . Storage 4 | 1 3 . Processor 1 | . 1 . Hackware . | . . . Protection 1 | . 1 . Artifact . | . . . Weapon 9 | 2 4 3 Energy Gun 4 | 1 3 . Energy Cannon . | . . . Ballistic Gun 2 | 1 . 1 Ballistic Cannon . | . . . Launcher 1 | . . 1 Special Weapon 2 | . 1 1 Impact Weapon . | . . . Slashing Weapon . | . . . Piercing Weapon . | . . . Special Melee Weapon . | . . . Unidentified Prototypes . | . . . Parts Lost 9 | . 1 8 Power 2 | . . 2 Propulsion 3 | . . 3 Utility . | . . . Weapon 4 | . 1 3 Highest Loss Streak 8 | . 1 8 Average Slot Usage (%) 98 | . 99 71 Engine 14 | . 14 14 Wheel 27 | . 27 21 Storage 22 | . 22 28 Processor 5 | . 5 . Energy Gun 13 | . 13 . Ballistic Gun 13 | . 13 7 Naked Turns . | . . . Heaviest Build 41 | 11 41 37 Greatest Support 26 | 26 26 10 Greatest Overweight (x) 3 | . 2 3 Average Overweight (x) . | . . 3 Largest Inventory Capacity 16 | 6 16 16 Average Capacity 11 | 5 11 16 Most Carried 15 | 4 15 15 Average Carried 9 | 2 10 13 Final Capacity 16 | 6 16 16 Final Carried 15 | 4 15 11 Class Distribution -------------------- 100% | Mutant Dominant Class ---------------- Mutant | -10/Materials Mutant | -10/Mines Resources | -11 -10 -10 ----------- Run | Scr Mat Min Matter Collected 606 | 209 327 70 Remotely . | . . . Salvage Created 350 | 24 299 27 Parts 22 | 2 20 . Haulers Intercepted . | . . . Recyclers Shooed . | . . . Parts Field Recycled . | . . . Retrieved Matter . | . . . Parts Self-Destructed . | . . . Prevented . | . . . Kills | -11 -10 -10 ------- Run | Scr Mat Min Combat Hostiles Destroyed 14 | . 5 9 Guns 5 | . 5 . AOE 9 | . . 9 Classes Destroyed 5 | 1 3 1 Tunneler 1 | 1 . . Recycler 1 | . 1 . Watcher 2 | . 2 . Grunt 5 | . 5 . Assembled 9 | . . 9 Best Kill Streak 9 | 1 3 9 Combat Bots Only 9 | . 2 9 Max Kills in Single Turn 7 | 1 1 7 Gunslinging . | . . . Exploded 7 | . . 7 Melee . | . . . Uniques/NPCs Destroyed . | . . . Combat | -11 -10 -10 -------- Run | Scr Mat Min Damage Taken 976 | . 252 724 Core 251 | . 105 146 Absorbed by Shields . | . . . Core Remaining (%) 100 | 100 . . Volleys Fired 38 | 3 29 6 Largest 2 | 2 2 2 Hottest 165 | 60 165 95 Shots Fired 70 | 6 57 7 Gun 67 | 6 56 5 Cannon . | . . . Launcher 2 | . . 2 Special 1 | . 1 . Kinetic 35 | 3 28 4 Thermal 33 | 3 29 1 Explosive 2 | . . 2 Electromagnetic . | . . . Robot Hit Streak 6 | 5 6 3 Robot Miss Streak 3 | . 3 1 Penetration Max . | . . . Secondary Targets . | . . . Shots Hit Robots 41 | 5 33 3 Core Hits 39 | 1 15 23 Critical Hits . | . . . Critical Kills . | . . . Critical Parts Destroyed . | . . . Melee Attacks . | . . . Impact . | . . . Slashing . | . . . Piercing . | . . . Sneak Attacks . | . . . Combat Hostiles . | . . . Follow-up Attacks . | . . . Damage Inflicted 891 | 49 358 484 Guns 439 | 49 358 32 Cannons . | . . . Explosions 452 | . . 452 Melee . | . . . Ramming . | . . . Kinetic 141 | 17 92 32 Thermal 298 | 32 266 . Explosive 452 | . . 452 Electromagnetic . | . . . Impact . | . . . Slashing . | . . . Piercing . | . . . Highest Corruption 8 | . . 8 Average Corruption 3 | . . 3 Corruption Purged . | . . . Overload Shots . | . . . Overflow Damage 15 | . . 15 Projectiles . | . . . Explosions 15 | . . 15 Melee . | . . . Knockbacks . | . . . Impact . | . . . Kinetic . | . . . Secondary . | . . . Self-Inflicted Damage 47 | . . 47 Shots 2 | . . 2 Rammed . | . . . Targets Rammed . | . . . Kicked . | . . . Crushed . | . . . Highest Temperature 182 | 20 182 88 Average Temperature 58 | 15 62 43 Received Heat Transfer 341 | . 141 200 Siege Activations . | . . . Robots Corrupted . | . . . Combat Hostiles . | . . . Parts Fried . | . . . Impact Corruptions . | . . . Robots Melted . | . . . Combat Hostiles . | . . . Parts Melted . | . . . Heat Transferred 721 | 75 646 . Parts Sabotaged . | . . . Parts Stolen . | . . . Parts Stripped . | . . . Power Chain Reactions . | . . . Missiles Intercepted . | . . . Alert | -11 -10 -10 ------- Run | Scr Mat Min Peak Influence 165 | 5 165 17 Average Influence 59 | . 68 3 Maximum Alert Level . | . . . Low Security (%) 100 | 100 100 100 Level 1 . | . . . Level 2 . | . . . Level 3 . | . . . Level 4 . | . . . Level 5 . | . . . High Security . | . . . Max Security . | . . . Squads Dispatched 1 | . 1 . Investigation 1 | . 1 . Extermination . | . . . Reinforcement . | . . . Assault . | . . . Garrison . | . . . Intercept . | . . . Construction Impeded . | . . . Haulers Reinforced . | . . . Stealth | -11 -10 -10 --------- Run | Scr Mat Min Distress Signals 1 | . 1 . Communications Jammed . | . . . Distress Signals . | . . . Times Spotted 31 | . 11 20 Peak Tracking Total 20 | . 3 20 Tactical Retreats . | . . . Traps | -11 -10 -10 ------- Run | Scr Mat Min Traps Triggered 1 | . 1 . Indirectly . | . . . Trap Hack Attempts . | . . . Triggered . | . . . Disarmed . | . . . Reprogrammed . | . . . Reused . | . . . Traps Extracted . | . . . Installed . | . . . Triggered . | . . . Machines | -11 -10 -10 ---------- Run | Scr Mat Min Machines Disabled . | . . . Max in Single Turn . | . . . Machines Sabotaged . | . . . Garrisons Compromised . | . . . Overloaded Fab Kills . | . . . Fab Network Shutdowns . | . . . Hacking | -11 -10 -10 --------- Run | Scr Mat Min Machines Accessed 5 | . 5 . Terminals 5 | . 5 . Fabricators . | . . . Repair Stations . | . . . Recycling Units . | . . . Scanalyzers . | . . . Garrison Access . | . . . Total Hacks 20 | . 20 . Successful 12 | . 12 . Failed 7 | . 7 . Catastrophic 1 | . 1 . Database Lockouts 2 | . 2 . Manual 14 | . 14 . Terminals 20 | . 20 . Fabricators . | . . . Repair Stations . | . . . Recycling Units . | . . . Scanalyzers . | . . . Garrison Access . | . . . Terminal Hacks 7 | . 7 . Part Schematic 1 | . 1 . Prototype ID Bank 1 | . 1 . Branch Access Points 1 | . 1 . Locate Traps 2 | . 2 . Zone Layout 2 | . 2 . Fabricator Hacks . | . . . Repair Station Hacks . | . . . Recycling Unit Hacks . | . . . Scanalyzer . | . . . Garrison Access Hacks . | . . . Unauthorized Hacks 10 | . 10 . Terminals 5 | . 5 . Track 2 | . 2 . Assimilate 1 | . 1 . Botnet 2 | . 2 . Fabricators . | . . . Repair Stations . | . . . Recycling Units . | . . . Scanalyzers . | . . . Garrison Access . | . . . Data Cores Recovered . | . . . Used . | . . . Hacking Detections 5 | . 5 . Full Trace Events . | . . . Feedback Events . | . . . Feedback Blocked . | . . . Robot Schematics Acquired . | . . . Robots Built . | . . . Matter . | . . . Time . | . . . Total Robot Build Rating . | . . . Part Schematics Acquired 1 | . 1 . Parts Built . | . . . Matter . | . . . Time . | . . . Total Part Build Rating . | . . . Parts Repaired . | . . . Time . | . . . Parts Recycled . | . . . Recycled Matter . | . . . Retrieved Matter . | . . . Retrieved Components . | . . . Parts Scanalyzed . | . . . Part Schematics Acquired . | . . . Parts Damaged . | . . . Bothacking | -11 -10 -10 ------------ Run | Scr Mat Min Used RIF Installer . | . . . Robots Hacked . | . . . Non-combat . | . . . Combat . | . . . Robot Hacks Applied . | . . . Relay Couplers Released . | . . . Robots Rewired . | . . . Allies Hacked . | . . . Hacks Repelled . | . . . Allies | -11 -10 -10 -------- Run | Scr Mat Min Total Allies 3 | . . 3 Largest Group 3 | . . 3 Highest-Rated Group 40 | . . 40 Highest-Rated Ally 16 | . . 16 Total Orders . | . . . Ally Attacks 7 | . . 7 Total Damage 68 | . . 68 Kills 1 | . . 1 Allies Corrupted . | . . . Allies Melted . | . . . Intel | -11 -10 -10 ------- Run | Scr Mat Min Robot Analysis Total . | . . . Derelict Logs Recovered . | . . . Drone Launches . | . . . Drone Recoveries . | . . . Exploration | -11 -10 -10 ------------- Run | Scr Mat Min Turns Passed 687 | 61 602 24 Spaces Moved 500 | 44 451 5 Core 1 | 1 . . Treads . | . . . Legs . | . . . Wheels 499 | 43 451 5 Hover . | . . . Flight . | . . . Fastest Speed 50 | 50 90 110 Average Speed 95 | 90 95 110 Slowest Speed 120 | 100 120 110 Overloaded Moves . | . . . Propulsion Burnouts . | . . . Robots Hopped . | . . . Cave-ins Triggered . | . . . Exploration Rate (%) 24 | 3 65 5 Regions Visited 2 Branch Regions 1 Pre-discovered Areas . | . . . Known Exits Taken 1 | . 1 . Unknown Exits Taken 1 | 1 . . Scrap Searched . | . . . Spaces Dug 7 | . 1 6 Terrain Destroyed 12 | . 1 11 Melee . | . . . Projectile 1 | . 1 . AOE 11 | . . 11 Actions | -11 -10 -10 --------- Run | Scr Mat Min Total 643 | 56 571 16 Wait 52 | . 52 . Move 498 | 43 450 5 Hop . | . . . Pick Up 22 | 4 18 . Fast Attach 10 | 6 4 . Attach 7 | . 3 4 Detach . | . . . Swap 6 | . 5 1 Drop 10 | . 10 . Fire 38 | 3 29 6 Melee . | . . . Ram . | . . . Kick . | . . . Crush . | . . . Escape Stasis . | . . . Rewire . | . . . Trap . | . . . Miscellaneous . | . . . Route ------- -11/Scrapyard -10/Materials (discovered 2 exits: *Mat / *Min) -10/Mines History --------- Turn | Location | Event 23 | -11/Scrapyard | Discovered new exit (range 16) 62 | -11/Scrapyard | Entered Materials 124 | -10/Materials | Discovered new exit (range 15) 154 | -10/Materials | Central database locked down 296 | -10/Materials | Identified exit to Mines 305 | -10/Materials | Build established: Mutant 310 | -10/Materials | Discovered new exit (range 5) 320 | -10/Materials | Identified exit to Materials 664 | -10/Materials | Entered Mines 665 | -10/Mines | Assembled infested the area 670 | -10/Mines | Core integrity fell below 50% 673 | -10/Mines | Assisted by bots powering up and referring to "LRC-V3" 683 | -10/Mines | Core integrity fell below 20% 688 | -10/Mines | Destroyed by as-97805 with Assembled Heavy Rifle Last Messages --------------- 00669_ as-65929 destroyed. 00671_ Acquired 4 matter. 00672_ Ion Engine destroyed. 00673_ Trooper 1a: "Hello LRC-V3. What is your command?" 00673_ Mercenary 1a: "Hello LRC-V3. What is your command?" 00673_ Trooper 1b: "Hello LRC-V3. What is your command?" 00675_ Mercenary 1a destroyed. 00675_ as-89172 destroyed. 00675_ Acquired 31 matter. 00675_ as-49207 destroyed. 00678_ Trooper 1a destroyed. 00678_ Trooper 1b destroyed. 00679_ Acquired 35 matter. 00683_ Wheel destroyed. 00686_ Lgt. Assault Rifle destroyed. 00687_ Lgt. Ion Engine destroyed. 00687_ Wheel destroyed. 00687_ System corrupted by crushing effect (+3). 00687_ System corrupted by crushing effect (+2). 00688_ U-05 Engineer builds a Wall. Map ----- +----------------------------------------------------+ | | | | | | | | | | | | | | | | | | | | | | | | | | | | | | | ???????????????????????????????? | | ???????????????????????????????? | | ???????????????????????????????? | | ???????????????????????????????? | | ???????????????????????????????? | | ???????????????????????????????? | | ???????????????????????????????? | | ???????????????????????????????? | | ???????????????????????????????? | | ?????#####?????????????????????? | | ????##=@!#?????????????????????? | | ????#=a[a###???????????????????? | | ????## =!* #???????????????????? | | ???## #???????#???????????? | | ??## a%### #???????????? | | ??# aa #???????????? | | ??# % a % #???????????? | | ??# a###### ##???????????? | | ??# %###???????#????????????? | | ??## # ????????????????????? | | ???## ## ???????????????????? | | ????####? $!??????????????????? | | ????????? !! ?????????????????? | | ??????????!! ????????????????? | | ?????????? ???????????????? | | ??????????## ??????????????? | | ???????????? ? ??????????????? | | ????????????? ?????????????????? | | ???????????????????????????????? | | ???????????????????????????????? | | ???????????????????????????????? | | ???????????????????????????????? | | ???????????????????????????????? | | ???????????????????????????????? | | ???????????????????????????????? | +----------------------------------------------------+ Best States ------------- Heat Dissipation 25 Energy Generation 10 Energy Capacity 250 Matter Stores 300 Matter Capacity 300 Sight Range 16 Terrain Scan Density 10 Evasion (%) 42 Item Schematics ----------------- Hcp. Storage Unit | -10/Materials | Hacked Robot Schematics ------------------ None Fabricated ------------ Nothing Alien Tech Used ----------------- None Achievements -------------- Hunted Challenges ------------ None Game ------ Seed ShrapnelRiotManipulator Manual? 0 Play Time 00:14:10 Cumulative 44.0 hours Start 2020.01.20 @ 18:46:51 End 2020.01.20 @ 19:02:21 Sessions 1 Manual Loads 0 Difficulty Rogue Special Mode None Game No. 22 Rogue 22 Adventurer 0 Explorer 0 Win Type - Total 0 Types 0/0/0/0/0/0/0 Lore% 22 Gallery% 49 Achievement% 37 Wizard Run 0 Options --------- ASCII 0 Keyboard 0 Movement Numpad Keybinds 0 Fullscreen 1 Font 18/SmallcapsGlow Map View 76x50 Tactical HUD 1 Map Filters NONE Filters NONE Steam 1 RUN: 1c0790cb-512d-41f0-931f-b3dfe05c6939